bitfinex-derivatives/quotes_ETHF0:USTF0_20251001
["timestamp","ask_amount","ask_price","bid_price","bid_amount"]
[1759316662398,0.0151,4294.4,4294.3,4.7036]
[1759316662599,3.2078,4295.4,4295.0,0.2215]
[1759316662797,4.4929,4295.4,4295.3,1.2578]
[1759316662991,4.96136676,4295.4,4295.3,1.2578]
[1759316663195,4.96423239,4295.4,4295.3,1.2578]
[1759316664398,3.75656563,4295.4,4295.3,1.2578]
[1759316664698,3.21066563,4295.4,4295.3,1.2578]
[1759316664896,3.55896563,4295.4,4295.3,1.2578]
[1759316665198,4.46836563,4295.4,4295.3,1.2578]
[1759316665703,3.93226563,4295.4,4295.3,1.2578]
[1759316665901,4.46836563,4295.4,4295.1,0.5222]
[1759316666206,0.7216,4295.3,4295.2,0.3432]
[1759316666401,1.2577,4295.3,4295.2,0.3432]
[1759316666997,1.2577,4295.3,4295.0,0.5222]
[1759316667506,0.3733,4295.2,4295.1,0.3432]
[1759316667698,1.2577,4295.2,4295.1,0.8654]
[1759316667898,0.7216,4295.2,4294.6,0.5222]
[1759316668197,0.3483,4294.7,4294.6,1.4459]
[1759316668398,1.2577,4294.7,4294.6,0.8654]
[1759316668599,1.2577,4294.7,4294.6,0.3432]
[1759316668796,1.2577,4294.7,4294.6,0.8654]
[1759316668996,1.2577,4294.7,4294.6,1.2079]
[1759316670506,1.2577,4294.7,4294.6,1.4459]
[1759316673198,1.2577,4294.7,4294.6,1.2079]
[1759316673499,1.2577,4294.6,4294.4,0.5222]
[1759316673704,1.2577,4294.6,4294.5,0.237]
[1759316673906,0.5361,4294.4,4294.3,3.2078]
[1759316674101,1.2577,4294.4,4294.3,3.2078]
[1759316674297,1.72566877,4294.4,4294.3,3.2078]
[1759316674508,0.7216,4293.9,4293.8,3.2078]
[1759316674704,1.72566877,4293.9,4293.8,3.2078]
[1759316679211,1.72566877,4293.9,4293.8,4.0732]
[1759316679712,1.72566877,4293.9,4293.8,3.2078]
[1759316680613,1.72566877,4293.9,4293.6,0.1863]
[1759316680808,1.2577,4293.7,4293.6,1.0517]
[1759316681008,1.72566877,4293.7,4293.6,1.0517]
[1759316681211,1.72566877,4293.7,4293.6,0.8654]
[1759316681613,1.72566877,4293.7,4293.6,1.2079]
[1759316682514,1.2577,4293.6,4293.5,1.11233]
[1759316682711,1.72566877,4293.6,4293.5,1.11233]
[1759316682918,1.72566877,4293.6,4293.5,1.45483]
[1759316685110,1.72566877,4293.6,4293.5,1.21783]
[1759316685316,1.72566877,4293.6,4293.5,1.45483]
[1759316687618,1.72566877,4293.6,4293.5,1.68013]
[1759316688628,1.72566877,4293.6,4293.5,0.87533]
[1759316688927,1.72566877,4293.6,4293.5,1.21783]
[1759316690929,0.46796877,4293.6,4293.5,1.44313]
[1759316691128,0.46796877,4293.9,4293.5,1.44313]
[1759316691428,0.3483,4293.7,4293.6,1.2079]
[1759316691629,0.81626877,4293.7,4293.6,1.2079]
[1759316692228,0.81626877,4293.7,4293.6,1.4449]
[1759316694030,0.46796877,4293.7,4293.6,1.4449]
[1759316694330,0.46796877,4293.9,4293.6,0.9227]
[1759316694628,0.46796877,4293.8,4293.6,0.9227]
[1759316694826,1.38096877,4293.7,4293.6,0.9227]
[1759316695123,1.38096877,4293.7,4293.6,1.4408]
[1759316695833,1.74666877,4293.7,4293.6,1.4408]
[1759316698631,0.46796877,4293.7,4293.6,1.4408]
[1759316698831,0.237,4294.7,4294.1,0.7223]
[1759316698832,0.913,4294.2,4294.1,0.7223]
[1759316699130,0.47183546,4294.2,4294.1,1.2404]
[1759316699328,1.75053546,4294.2,4294.1,1.2404]
[1759316699630,1.75053546,4294.2,4293.8,3.7259]
[1759316699833,0.7249,4293.9,4293.8,4.0856]
[1759316700028,1.75053546,4293.9,4293.8,4.6852]
[1759316700531,1.75053546,4293.9,4293.5,0.23523]
[1759316700532,1.2787,4292.8,4292.7,1.2404]
[1759316700722,1.75053546,4292.8,4292.7,1.2404]
[1759316700921,1.75053546,4292.8,4292.6,0.00235093]
[1759316701124,1.75053546,4292.7,4292.6,0.00235093]
[1759316701434,1.75053546,4292.7,4292.1,3.9301]
[1759316701435,1.2787,4292.2,4292.1,3.9301]
[1759316701632,1.19673546,4292.2,4292.1,4.6852]
[1759316701840,0.47183546,4292.2,4292.1,4.6852]
[1759316702130,0.3592,4293.1,4293.0,0.9329]
[1759316702330,0.36204558,4293.1,4293.0,1.17182187]
[1759316702637,0.36204558,4293.1,4293.0,1.68992187]
[1759316702834,0.47470498,4293.1,4293.0,1.68992187]
[1759316703036,0.00284558,4293.1,4293.0,1.68992187]
[1759316703736,0.47508162,4293.1,4293.0,1.68992187]
[1759316705039,0.47508162,4293.1,4293.0,1.45292187]
[1759316705236,1.75378162,4293.1,4293.0,1.68992187]
[1759316705631,1.75378162,4293.1,4293.0,0.00192187]
[1759316706144,1.75378162,4293.1,4293.0,0.87972187]
[1759316708336,1.75378162,4293.1,4293.0,1.24232187]
[1759316709232,1.75378162,4293.1,4293.0,1.45292187]
[1759316709936,1.75378162,4293.1,4293.0,1.24232187]
[1759316710137,1.75378162,4293.1,4293.0,1.47932187]
[1759316710340,1.75378162,4293.1,4293.0,1.68992187]
[1759316711341,1.19998162,4293.1,4293.0,1.68992187]
[1759316712043,0.47508162,4293.1,4293.0,1.68992187]
[1759316712249,0.0232,4293.6,4293.5,1.451]
[1759316712541,0.0232,4293.6,4293.5,1.688]
[1759316712741,0.3592,4293.6,4293.5,1.1699]
[1759316712940,1.2787,4293.6,4293.5,0.9329]
[1759316713140,1.28151116,4293.6,4293.5,0.3597]
[1759316713348,1.28151116,4293.6,4293.5,1.2404]
[1759316713847,1.28151116,4293.6,4293.5,1.4774]
[1759316714049,1.28151116,4293.6,4293.5,1.2404]
[1759316714251,1.28151116,4293.6,4293.5,0.3597]
[1759316714541,1.2787,4293.3,4293.0,0.00192187]
[1759316714748,1.2787,4293.3,4293.0,0.23892187]
[1759316714947,1.2787,4293.3,4293.0,0.00192187]
[1759316715540,1.2787,4293.1,4293.0,0.00192187]
[1759316719248,0.0232,4293.5,4293.4,0.7134]
[1759316719544,0.00281116,4293.6,4293.5,0.7661]
[1759316719745,0.00281116,4293.6,4293.5,1.4795]
[1759316721852,0.5077,4294.6,4293.5,6.4795]
[1759316722057,1.1917,4294.6,4293.6,0.5518]
[1759316722256,0.3407,4293.9,4293.8,1.2652]
[1759316722747,0.3407,4293.9,4293.8,0.7134]
[1759316722948,1.19380225,4293.9,4293.8,1.5022]
[1759316723149,0.34280225,4293.9,4293.8,1.5022]
[1759316723350,0.00210225,4293.9,4293.8,1.5022]
[1759316723558,0.00210225,4293.9,4293.8,1.2652]
[1759316723857,0.34490225,4293.9,4293.8,1.5022]
[1759316724157,0.34490225,4293.9,4293.8,1.2652]
[1759316724356,0.34490225,4293.9,4293.8,1.5022]
[1759316724658,0.70990225,4293.9,4293.8,1.2652]
[1759316724955,1.24240225,4293.9,4293.8,1.5022]
[1759316725562,1.24240225,4293.9,4293.8,1.2652]
[1759316725857,1.71242292,4293.9,4293.8,1.2652]
[1759316727563,1.17992292,4293.9,4293.8,1.2652]
[1759316728557,0.81492292,4293.9,4293.8,1.2652]
[1759316729958,1.71242292,4293.9,4293.8,1.5022]
[1759316730262,0.47212292,4293.9,4293.5,0.5483]
[1759316730562,1.4454,4293.5,4293.4,3.2078]
[1759316730764,1.91542067,4293.5,4293.4,3.2078]
[1759316731853,1.71032067,4293.5,4293.4,4.0969]
[1759316732551,1.71032067,4293.5,4293.4,4.468]
[1759316732962,0.47002067,4293.5,4293.4,9.468]
[1759316733163,0.34490225,4293.9,4293.8,1.2602]
[1759316733465,0.81510011,4293.9,4293.8,1.4982]
[1759316733761,1.71260011,4293.9,4293.8,1.4982]
[1759316733965,0.47230011,4293.9,4293.8,1.4982]
[1759316734261,0.00210225,4293.9,4293.8,1.4982]
[1759316736265,0.00210225,4293.9,4293.8,6.4982]
[1759316736961,0.0232,4294.5,4294.4,1.2602]
[1759316737263,3.7403,4295.1,4294.4,4.706]
[1759316737459,3.7403,4295.1,4294.9,0.7119]
[1759316737460,0.81283451,4295.0,4294.9,0.7119]
[1759316737766,1.71033451,4295.0,4294.9,1.2602]
[1759316737953,1.71201188,4295.0,4294.9,1.2602]
[1759316738553,0.81451188,4295.0,4294.9,1.2602]
[1759316738960,0.47171188,4295.0,4294.9,1.2602]
[1759316739767,0.00167737,4295.0,4294.9,1.2602]
[1759316741157,0.00167737,4295.0,4294.9,1.4982]
[1759316743567,0.00167737,4295.0,4294.9,4.706]
[1759316744471,0.00167737,4295.0,4294.9,4.468]
[1759316744666,0.00167737,4295.0,4294.9,4.705]
[1759316747773,0.34447737,4295.0,4294.9,4.468]
[1759316748373,0.34447737,4295.0,4294.9,4.705]
[1759316749274,0.00167737,4295.0,4294.9,4.705]
[1759316750873,0.00167737,4295.0,4294.9,4.468]
[1759316751075,0.00167737,4295.0,4294.9,4.705]
[1759316751673,0.01212881,4296.0,4294.9,4.705]
[1759316751977,0.90962881,4296.0,4295.9,0.8891]
[1759316752176,1.25242881,4296.0,4295.9,0.8891]
[1759316752576,1.2403,4295.9,4295.8,3.2078]
[1759316752779,4.45093453,4295.9,4295.6,0.238]
[1759316752975,0.5325,4295.8,4295.4,0.238]
[1759316753178,1.2403,4295.5,4295.4,0.5788]
[1759316753479,1.2403,4295.5,4295.4,1.1055]
[1759316753875,1.2403,4295.5,4295.4,1.4435]
[1759316756683,0.5216,4295.4,4295.0,3.9453]
[1759316756986,1.2024,4295.2,4295.1,1.1192]
[1759316757386,1.2024,4295.2,4295.1,1.4572]
[1759316757583,1.2024,4295.2,4295.1,1.2192]
[1759316757888,1.2024,4295.2,4295.1,1.4572]
[1759316758782,0.3317,4295.2,4295.1,1.4572]
[1759316758978,0.5448,4295.7,4295.1,0.9305]
[1759316759290,1.2256,4295.7,4295.6,0.8812]
[1759316759584,1.2024,4295.7,4295.6,0.8812]
[1759316759974,1.2024,4295.7,4295.6,0.3545]
[1759316760482,1.2024,4295.7,4295.6,1.2192]
[1759316761788,0.6808,4295.7,4295.6,1.2192]
[1759316762686,1.2024,4295.7,4295.6,1.2192]
[1759316764283,1.2024,4295.7,4295.3,0.238]
[1759316764686,0.54763453,4295.9,4295.3,0.238]
[1759316764886,1.2024,4295.4,4295.3,0.3545]
[1759316765085,1.2024,4295.4,4295.3,0.8812]
[1759316765486,0.8533,4295.8,4295.7,0.6925]
[1759316765789,0.8533,4295.8,4295.7,1.2192]
[1759316766193,1.2024,4295.8,4295.7,1.2192]
[1759316768496,0.6808,4295.8,4295.7,1.2192]
[1759316768697,1.2024,4295.8,4295.7,1.2192]
[1759316768888,0.6808,4295.8,4295.7,1.2192]
[1759316769896,0.3317,4295.8,4295.7,1.2192]
[1759316770896,0.02603453,4295.9,4295.5,3.6612]
[1759316770897,0.02603453,4295.9,4295.8,1.2192]
[1759316771294,0.00283453,4295.9,4295.8,1.2192]
[1759316771794,1.20523453,4295.9,4295.8,1.2192]
[1759316772298,0.68363453,4295.9,4295.8,1.2192]
[1759316772599,0.33453453,4295.9,4295.8,1.2192]
[1759316774199,1.20523453,4295.9,4295.8,1.2192]
[1759316774498,0.33453453,4295.9,4295.8,1.2192]
[1759316774698,0.00283453,4295.9,4295.8,1.2192]
[1759316775995,1.20523453,4295.9,4295.8,1.2192]
[1759316776398,0.68363453,4295.9,4295.8,1.2192]
[1759316777600,0.33453453,4295.9,4295.8,1.2192]
[1759316777799,0.00283453,4295.9,4295.8,1.2192]
[1759316780202,0.00283453,4295.9,4295.8,1.4572]
[1759316784093,0.00283453,4295.9,4295.8,1.2192]
[1759316784298,0.00283453,4295.9,4295.8,1.4572]
[1759316784903,0.00283453,4295.9,4295.8,1.2192]
[1759316785111,0.00283453,4295.9,4295.8,1.4572]
[1759316788207,3.2078,4297.0,4296.9,1.1661]
[1759316788400,3.2078,4297.0,4296.9,1.4041]
[1759316788797,3.5678,4297.0,4296.9,1.4041]
[1759316789202,4.633668,4297.0,4296.9,0.00301511]
[1759316789510,9.633668,4297.0,4296.9,0.00301511]
[1759316791005,9.871668,4297.0,4296.9,0.00301511]
[1759316794212,9.871668,4297.0,4295.8,0.4944]
[1759316794402,4.871668,4297.0,4295.8,0.4944]
[1759316795111,4.871668,4297.0,4295.8,0.49714941]
[1759316795712,1.2141,4295.9,4295.8,0.00274941]
[1759316796103,1.2141,4295.2,4295.1,0.3385]
[1759316796305,1.2141,4295.2,4294.6,3.2078]
[1759316796306,1.2141,4294.8,4294.7,1.1661]
[1759316796610,1.2141,4294.8,4294.7,0.8329]
[1759316796916,0.36,4294.2,4294.1,4.3739]
[1759316797210,1.2141,4294.2,4294.1,1.16803046]
[1759316799718,1.2141,4294.2,4294.1,0.34043046]
[1759316800410,1.2141,4294.2,4294.1,0.00193046]
[1759316807217,1.2141,4294.2,4294.1,1.16803046]
[1759316807421,0.36,4294.2,4294.1,1.16803046]
[1759316807717,3.2078,4294.3,4294.2,0.4944]
[1759316807918,3.7237,4294.3,4294.2,1.1661]
[1759316808216,3.2078,4294.3,4294.2,1.1661]
[1759316808413,3.2078,4294.9,4294.2,3.8795]
[1759316808613,3.2078,4294.9,4294.5,0.1976]
[1759316808614,0.5159,4294.8,4294.5,0.1976]
[1759316808822,0.8759,4294.8,4294.7,1.1661]
[1759316809112,1.2141,4294.8,4294.7,1.1661]
[1759316810417,1.2141,4294.8,4294.7,0.8329]
[1759316812019,1.2141,4294.8,4294.7,1.1661]
[1759316813821,0.6982,4294.8,4294.7,1.1661]
[1759316814127,1.218,4294.8,4294.7,1.1661]
[1759316817125,1.218,4294.8,4294.7,0.3385]
[1759316817421,0.6982,4294.8,4294.3,0.4826]
[1759316817726,1.1897,4294.3,4294.2,0.824]
[1759316818825,1.1897,4294.3,4294.2,1.1771]
[1759316826632,0.3338,4294.6,4294.5,0.551]
[1759316826836,0.3338,4294.6,4294.5,1.375]
[1759316827828,0.543,4294.9,4294.5,0.8924]
[1759316827829,0.0232,4294.9,4294.5,0.8924]
[1759316828036,0.0232,4294.9,4294.8,0.6945]
[1759316828233,0.0232,4294.9,4294.8,1.1771]
[1759316828540,3.8777,4295.4,4295.3,0.3414]
[1759316828732,3.8777,4295.4,4295.3,0.824]
[1759316828733,4.3975,4295.4,4295.3,0.824]
[1759316829638,3.8777,4295.4,4295.0,0.1979]
[1759316829837,1.1897,4295.2,4295.1,0.4826]
[1759316832050,1.1897,4295.2,4295.1,0.824]
[1759316832550,1.1897,4295.2,4295.1,1.1771]
[1759316836242,0.6699,4295.2,4295.1,1.1771]
[1759316838553,0.5198,4295.5,4295.2,0.4826]
[1759316838755,1.1148,4295.7,4295.6,1.1771]
[1759316838955,1.4509,4295.7,4295.6,1.1771]
[1759316839254,1.4277,4295.7,4295.6,1.1771]
[1759316839652,1.1897,4295.7,4295.6,1.1771]
[1759316843056,0.3478,4296.1,4296.0,1.3942]
[1759316843759,0.8341,4296.0,4295.9,0.7863]
[1759316843956,1.1652,4296.0,4295.9,1.1235]
[1759316846258,1.1652,4296.0,4295.9,0.7863]
[1759316847256,1.1652,4296.0,4295.9,1.1235]
[1759316852962,1.3629,4296.0,4295.6,0.4722]
[1759316853358,1.1652,4296.0,4295.9,0.3141]
[1759316853553,1.1652,4296.0,4295.9,0.7863]
[1759316853958,1.1652,4296.0,4295.9,1.1235]
[1759316863569,0.3311,4296.0,4295.9,1.1235]
[1759316863762,0.0232,4296.4,4296.3,0.3141]
[1759316863958,0.0232,4296.4,4296.3,1.1235]
[1759316864164,0.838468,4297.0,4296.9,0.6513]
[1759316864364,1.167668,4297.0,4296.9,1.1235]
[1759316864567,1.35660551,4297.0,4296.9,1.1235]
[1759316865972,1.35660551,4297.0,4296.5,0.1942]
[1759316865973,1.55430551,4297.0,4296.6,0.4722]
[1759316866569,1.55430551,4297.0,4296.5,0.1942]
[1759316866769,1.55430551,4297.0,4296.6,0.4722]
[1759316866770,1.57750551,4297.0,4296.6,0.4722]
[1759316867670,1.57750551,4297.0,4296.5,0.1942]
[1759316867871,1.57750551,4297.0,4296.6,0.4722]
[1759316868071,1.57750551,4297.0,4296.5,0.1942]
[1759316868275,1.57750551,4297.0,4296.6,0.4722]
[1759316868677,1.57750551,4297.0,4296.5,0.1942]
[1759316868876,1.57750551,4297.0,4296.6,0.4722]
[1759316869576,1.3629,4296.5,4296.4,3.2078]
[1759316870176,1.3629,4296.5,4296.4,3.68]
[1759316870379,1.3629,4296.5,4296.4,3.9941]
[1759316870676,1.3629,4296.5,4296.0,0.1942]
[1759316870972,1.3629,4296.5,4296.1,0.4722]
[1759316871276,0.3311,4296.1,4296.0,1.3177]
[1759316872572,0.5049,4296.8,4296.0,4.0533]
[1759316872777,1.1652,4296.8,4296.7,0.3141]
[1759316872976,1.1652,4296.8,4296.7,0.7863]
[1759316873185,1.1652,4296.8,4296.7,0.3141]
[1759316874376,1.1652,4296.8,4296.5,0.4874]
[1759316875577,0.6603,4296.8,4296.1,0.4874]
[1759316875779,0.5086,4296.7,4296.1,0.4874]
[1759316876579,1.1836,4296.7,4296.6,0.3364]
[1759316876774,1.1836,4296.7,4296.6,0.8238]
[1759316877177,1.1836,4296.7,4296.6,1.1525]
[1759316877679,1.1836,4296.7,4296.6,1.1475]
[1759316879083,1.1786,4296.7,4296.6,1.1475]
[1759316879677,0.3417,4296.7,4296.6,1.1475]
[1759316880878,0.237,4296.9,4296.7,1.1525]
[1759316880879,0.3417,4296.8,4296.7,1.1525]
[1759316881379,3.233468,4297.0,4296.7,1.1525]
[1759316881586,3.742068,4297.0,4296.8,0.4874]
[1759316881886,0.3417,4296.9,4296.8,1.1525]
[1759316882790,0.8503,4296.9,4296.8,1.1525]
[1759316883788,1.1836,4296.9,4296.8,1.1525]
[1759316887989,0.3417,4296.9,4296.8,1.1525]
[1759316889392,0.8503,4296.9,4296.8,1.1525]
[1759316889687,1.1836,4296.9,4296.7,0.4874]
[1759316889892,0.675,4296.9,4296.8,1.1525]
[1759316890286,1.1836,4296.9,4296.8,1.1525]
[1759316891481,0.675,4296.9,4296.8,1.1525]
[1759316891898,1.1836,4296.9,4296.8,1.1525]
[1759316892687,0.002468,4297.0,4296.8,1.1525]
[1759316892889,0.002468,4297.0,4296.9,1.1525]
[1759316893790,0.344168,4297.0,4296.9,1.1525]
[1759316894001,0.852768,4297.0,4296.9,1.1525]
[1759316894995,1.186068,4297.0,4296.9,1.1525]
[1759316896001,1.388568,4297.0,4296.7,0.4874]
[1759316896202,1.388568,4297.0,4296.6,0.1861]
[1759316896797,0.879968,4297.0,4296.9,0.3364]
[1759316897003,0.677468,4297.0,4296.9,0.8238]
[1759316897302,1.186068,4297.0,4296.9,1.1525]
[1759316897494,0.002468,4297.0,4296.9,1.1525]
[1759316898205,0.344168,4297.0,4296.9,1.1525]
[1759316898604,0.002468,4297.0,4296.9,1.1525]
[1759316899404,0.344168,4297.0,4296.9,1.1525]
[1759316899902,0.002468,4297.0,4296.9,1.1525]
[1759316900101,0.789368,4297.0,4296.9,1.1525]
[1759316901603,1.098568,4297.0,4296.9,1.1525]
[1759316902595,0.316168,4297.0,4296.9,1.1525]
[1759316902794,0.002468,4297.0,4296.9,1.1525]
[1759316903000,0.316168,4297.0,4296.9,1.1525]
[1759316903200,0.808668,4297.0,4296.9,1.1525]
[1759316904003,0.808668,4297.0,4296.7,0.1861]
[1759316904004,1.316468,4297.0,4296.7,0.1861]
[1759316905599,1.120568,4297.0,4296.9,1.1347]
[1759316905806,0.316168,4297.0,4296.9,1.1347]
[1759316906002,0.808668,4297.0,4296.9,1.1347]
[1759316906200,1.120568,4297.0,4296.9,1.1347]
[1759316906898,1.316468,4297.0,4296.7,0.1861]
[1759316907203,1.1093,4296.8,4296.7,1.0146]
[1759316907503,1.1093,4296.8,4296.7,0.8285]
[1759316909201,0.4925,4296.7,4296.5,3.699]
[1759316909402,1.1093,4296.6,4296.5,3.2078]
[1759316910309,1.1093,4296.6,4296.5,4.0363]
[1759316911610,1.1093,4296.6,4296.5,4.3425]
[1759316913609,1.1093,4296.6,4296.5,4.5326]
[1759316913906,0.6168,4296.6,4296.5,4.5326]
[1759316914109,0.3049,4296.6,4296.5,4.5326]
[1759316914604,0.4925,4296.9,4296.5,4.5326]
[1759316914605,0.7974,4296.9,4296.8,0.3373]
[1759316914804,1.1093,4296.9,4296.8,1.1347]
[1759316915908,0.002468,4297.0,4296.8,1.1347]
[1759316916111,0.002468,4297.0,4296.9,1.1347]
[1759316916112,0.799868,4297.0,4296.9,1.1347]
[1759316916307,1.111768,4297.0,4296.9,1.1347]
[1759316919111,0.307368,4297.0,4296.9,1.1347]
[1759316919508,0.799868,4297.0,4296.9,1.1347]
[1759316919811,1.307668,4297.0,4296.9,0.8285]
[1759316920509,1.111768,4297.0,4296.9,0.8285]
[1759316921213,1.111768,4297.0,4296.9,1.1347]
[1759316921609,0.002468,4297.0,4296.9,1.1347]
[1759316922113,1.111768,4297.0,4296.9,0.4912]
[1759316922313,1.111768,4297.0,4296.9,1.1347]
[1759316927316,0.002468,4297.0,4296.9,1.1347]
[1759316927619,1.111768,4297.0,4296.9,1.1347]
[1759316928517,1.307668,4297.0,4296.9,0.8285]
[1759316929325,1.307668,4297.0,4296.7,0.1861]
[1759316930322,1.1093,4296.8,4296.7,0.6773]
[1759316930819,1.1093,4296.8,4296.7,0.4912]
[1759316931221,0.4925,4296.7,4296.5,3.699]
[1759316931424,1.1093,4296.6,4296.5,3.5451]
[1759316931921,1.1093,4296.6,4296.5,4.3425]
[1759316933410,0.0232,4296.8,4296.5,9.045]
[1759316933615,0.0232,4296.8,4296.7,1.0749]
[1759316934423,0.8163,4296.8,4296.7,1.0749]
[1759316934622,1.1434,4296.8,4296.7,1.0749]
[1759316935721,0.0232,4296.8,4296.7,1.0749]
[1759316936510,0.002468,4297.0,4296.9,0.604]
[1759316936814,1.310368,4297.0,4296.5,3.5876]
[1759316937018,1.1202,4296.6,4296.5,3.9979]
[1759316937220,1.1202,4296.6,4296.5,3.3939]
[1759316937417,1.59345209,4296.6,4296.5,3.3939]
[1759316937621,1.59345209,4296.6,4296.3,0.4709]
[1759316937812,1.59345209,4296.5,4296.4,0.7703]
[1759316938919,1.59345209,4296.5,4295.6,3.2078]
[1759316938920,0.316,4295.7,4295.6,3.2078]
[1759316939120,1.1202,4295.7,4295.6,3.5072]
[1759316939324,1.59345209,4295.7,4295.6,3.5072]
[1759316939921,1.59345209,4295.7,4295.6,3.2078]
[1759316940120,1.1202,4295.6,4295.5,0.2994]
[1759316940419,0.1877,4295.5,4294.6,1.07407453]
[1759316940614,1.1202,4295.4,4295.3,0.0026]
[1759316941322,0.7931,4295.4,4295.3,0.0052]
[1759316941521,3.2078,4295.7,4295.6,0.0052]
[1759316941522,3.6849,4295.7,4295.6,0.0052]
[1759316941723,4.0009,4295.7,4295.6,0.0052]
[1759316942228,4.328,4295.7,4295.6,0.0052]
[1759316942422,0.4771,4295.6,4294.8,0.237]
[1759316942620,0.9808,4295.0,4294.9,0.0052]
[1759316943825,1.3079,4295.0,4294.9,0.0052]
[1759316947224,0.6431,4294.6,4294.5,3.2078]
[1759316947531,1.1202,4294.6,4294.5,3.2078]
[1759316947718,0.1877,4294.5,4294.1,0.00193046]
[1759316947924,0.1877,4294.5,4294.1,0.00713046]
[1759316947925,1.1202,4294.2,4294.1,0.00713046]
[1759316948226,1.1202,4294.2,4294.1,0.00453046]
[1759316948823,1.1202,4294.2,4294.1,0.00193046]
[1759316950222,1.1202,4294.2,4294.1,0.00453046]
[1759316952820,1.1202,4294.2,4294.1,0.00193046]
[1759316953625,1.1202,4294.2,4294.1,0.00453046]
[1759316954824,1.1202,4294.2,4294.1,0.00713046]
[1759316955030,0.7931,4294.2,4294.1,0.00713046]
[1759316955331,1.1202,4294.2,4294.1,0.00713046]
[1759316957031,1.1202,4294.2,4294.1,0.00453046]
[1759316957524,1.1202,4294.2,4294.1,0.00193046]
[1759316957833,1.1202,4294.2,4294.1,0.00453046]
[1759316958130,1.1202,4294.2,4294.1,0.00193046]
[1759316965236,1.1202,4294.2,4294.1,0.15873046]
[1759316966132,1.58935532,4294.2,4294.1,0.15873046]
[1759316968633,0.7931,4294.2,4294.1,5.15873046]
[1759316968932,0.4771,4294.2,4294.1,5.20773046]
[1759316970639,0.4771,4294.2,4294.1,5.15873046]
[1759316971437,0.4771,4294.2,4294.1,5.20773046]
[1759316973742,0.7956,4294.2,4294.1,5.15873046]
[1759316974343,0.4771,4294.2,4294.1,0.20773046]
[1759316975039,0.4771,4294.2,4294.1,0.15873046]
[1759316976443,0.7956,4294.2,4294.1,0.15873046]
[1759316978039,0.4771,4294.2,4294.1,0.20773046]
[1759316978236,0.7956,4294.2,4294.1,0.15873046]
[1759316980046,1.1186,4294.2,4294.1,0.15873046]
[1759316980947,1.1186,4294.2,4294.1,0.08033046]
[1759316982151,1.1186,4294.2,4294.1,0.00193046]
[1759316982352,1.1186,4294.2,4294.1,0.23893046]
[1759316982547,1.1186,4294.2,4294.1,0.00193046]
[1759316982953,1.58940748,4294.2,4294.1,0.00193046]
[1759316992166,1.1186,4294.2,4294.1,0.00193046]
[1759316997767,1.1186,4294.2,4294.1,0.23893046]
[1759316998469,1.1186,4294.2,4294.1,0.28973046]
[1759317001971,1.1186,4294.2,4294.1,0.23893046]
[1759317004871,1.1186,4294.2,4294.1,0.00193046]
[1759317005077,1.1186,4294.2,4294.1,0.23893046]
[1759317005270,1.1186,4294.2,4294.1,0.28973046]
[1759317005467,1.1186,4294.2,4294.1,0.23893046]
[1759317005979,0.7956,4294.2,4294.1,0.34053046]
[1759317006279,0.4771,4294.2,4294.1,6.62970827]
[1759317006576,0.4771,4294.2,4294.1,5.37233046]
[1759317006878,0.4771,4294.2,4294.1,46.17233046]
[1759317008474,0.8483,4295.0,4294.9,0.6508]
[1759317008677,3.2078,4295.7,4294.9,2.2319729]
[1759317008980,0.3336,4295.3,4295.2,5.2027729]
[1759317009174,0.6606,4295.3,4295.2,5.4397729]
[1759317009374,0.6606,4295.3,4295.2,4.6028]
[1759317010479,1.1467,4295.3,4295.2,4.6028]
[1759317010874,1.1467,4295.3,4295.2,3.2078]
[1759317011477,1.1467,4295.3,4295.2,3.527]
[1759317011983,1.1467,4295.3,4295.2,3.2078]
[1759317013586,1.1467,4295.3,4295.2,3.527]
[1759317014278,1.1467,4295.3,4295.2,3.2078]
[1759317015986,1.1467,4295.3,4295.2,3.527]
[1759317016285,1.1467,4295.3,4295.2,4.3658]
[1759317022088,0.4861,4295.3,4295.2,4.3658]
[1759317022287,0.8481,4296.0,4295.9,0.3064]
[1759317022487,1.3122,4296.0,4295.9,0.3064]
[1759317024087,1.3122,4296.0,4295.9,1.1292]
[1759317025895,1.1245,4296.0,4295.9,1.1292]
[1759317026095,0.4619,4296.4,4295.9,0.6329]
[1759317026299,1.1295,4296.4,4296.1,0.4963]
[1759317026590,1.1295,4296.4,4296.2,0.237]
[1759317026986,1.1295,4296.4,4296.3,0.3118]
[1759317027394,1.1295,4296.4,4296.3,1.1346]
[1759317028192,0.7968,4296.4,4296.3,1.1346]
[1759317028388,0.192968,4297.0,4296.4,0.4963]
[1759317028589,1.1295,4296.9,4296.8,0.3118]
[1759317029396,1.1295,4296.9,4295.8,3.5196]
[1759317029397,1.1295,4295.9,4295.8,3.5196]
[1759317032198,1.1295,4295.9,4295.8,3.8461]
[1759317032394,1.1295,4295.9,4295.8,4.3424]
[1759317032899,1.1295,4295.9,4295.8,4.5794]
[1759317033300,0.1934,4296.5,4295.8,4.5794]
[1759317033500,0.7968,4296.4,4296.3,1.1346]
[1759317033800,1.1295,4296.4,4296.3,1.3716]
[1759317036700,1.1295,4296.4,4296.3,0.3118]
[1759317038302,1.1295,4296.4,4296.3,0.6383]
[1759317039600,0.6676,4296.4,4295.8,3.2078]
[1759317039798,1.1295,4295.9,4295.8,3.5196]
[1759317040304,1.1295,4295.9,4295.8,3.2078]
[1759317042606,1.1295,4295.9,4295.8,4.3424]
[1759317044114,1.1295,4295.9,4295.8,3.8461]
[1759317045820,1.1295,4295.9,4295.8,4.3424]
[1759317046516,0.4619,4295.9,4295.8,4.3424]
[1759317046712,0.237,4296.4,4295.9,0.4963]